[Event "14th Karen Asrian Memorial 2024"]
[Site "Yerevan"]
[Date "2024.04.24"]
[Round "1.1"]
[White "Petrosyan, Manuel"]
[Black "Sklokin, Sergey"]
[Result "1-0"]
[ECO "D30"]
[WhiteElo "2616"]
[BlackElo "2054"]
[Annotator "TA"]
[PlyCount "87"]
[EventDate "2024.04.24"]
[EventType "swiss"]
[EventCountry "ARM"]
[SourceTitle "playchess.com"]
[Source "ChessBase"]
[SourceQuality "1"]
[TimeControl "40/5400+30:1800+30"]

{[%evp 16,87,41,36,51,53,69,66,70,73,68,82,64,75,114,116,108,125,124,103,100,93,145,153,141,110,126,119,125,99,114,97,107,98,100,97,113,81,108,88,113,112,154,150,134,135,227,230,230,227,237,207,197,199,477,475,475,475,461,475,387,185,950,889,6203,6203,29962,11764,5210,1060,29993,29990,29990,29991]} 1. d4 {[%emt 0:02:24]} d5 {[%emt 0:00:08]} 2. c4 {[%emt 0:00:24]} e6 {[%emt 0:00:08]} 3. Nf3 {[%emt 0:00:05]} c5 {[%emt 0:00:10]} 4. cxd5 {[%emt 0:00:31]} exd5 {[%emt 0:00:08]} 5. g3 {[%emt 0:00:05]} Nc6 {[%emt 0:00:21]} 6. Bg2 {[%emt 0:00:07]} Nf6 {[%emt 0:00:18]} 7. O-O {[%emt 0:00:09]} Be7 {[%emt 0:00:08][%cal Bf8e7,Be7c5,Bc5a7][%mdl 32]} 8. dxc5 {[%emt 0:00:14]} Bxc5 {[%emt 0:00:25]} 9. a3 {[%emt 0:00:06]} a5 {[%emt 0:04:56]} 10. Bg5 {[%emt 0:04:32]} Be6 {[%emt 0:01:12]} 11. Qc2 {[%emt 0:04:15]} Ba7 {[%emt 0:05:10] White is slightly better.} 12. Nc3 {[%emt 0:02:01]} h6 {[%emt 0:05:11]} 13. Bxf6 {[%emt 0:03:56]} Qxf6 {[%emt 0:00:51]} 14. Rad1 {[%emt 0:04:22]} O-O {[%emt 0:05:14]} 15. Nxd5 {[%emt 0:03:53]} Bxd5 {[%emt 0:00:31]} 16. Rxd5 {[%emt 0:00:06]} Nd4 {[%emt 0:04:17]} 17. Qd3 {[%emt 0:11:18]} Rfd8 {[%emt 0:09:11]} 18. Nxd4 {[%emt 0:01:38]} (18. Rxa5 Nxf3+ 19. Qxf3 Bxf2+ (19... Qxb2 $2 20. e3 $18) 20. Rxf2 Qxf3 (20... Rxa5 21. Qxb7 Rf5 22. Rxf5 $15) 21. Rxf3 (21. Rxa8 Qxf2+ 22. Kxf2 Rxa8 $17) 21... Rxa5 $17) 18... Rxd5 {[%emt 0:01:42]} (18... Bxd4 $142 19. Rb5 Bxb2) 19. Bxd5 $16 {[%emt 0:00:09]} Bxd4 {[%emt 0:00:33]} 20. b3 {[%emt 0:05:17]} Rd8 {[%emt 0:22:33]} 21. Qc4 {[%emt 0:07:16]} b6 {[%emt 0:05:23]} 22. e3 {[%emt 0:01:30]} Bc5 {[%emt 0:00:53]} 23. Rd1 {[%emt 0:04:34][%cal Od5f7] Bxf7+! would now be deadly.} Be7 {[%emt 0:02:45]} 24. b4 {[%emt 0:04:29]} axb4 {[%emt 0:02:27]} 25. axb4 {[%emt 0:00:05]} Kf8 {[%emt 0:03:59]} 26. Rb1 {[%emt 0:09:52][%cal Bd1b1,Bb1b3,Bb3a3,Ba3a7,Ba7d7][%mdl 32]} g6 {[%emt 0:06:01]} 27. Kg2 {[%emt 0:01:51]} Kg7 {[%emt 0:03:01]} 28. Rb3 {[%emt 0:08:31]} Qf5 {[%emt 0:03:18] [#]} 29. e4 {[%emt 0:01:13]} Qe5 {[%emt 0:00:07]} 30. Ra3 {[%emt 0:05:37]} ({But not} 30. Bxf7 $6 Rd4 31. Qe6 Qxe6 32. Bxe6 Rxe4 $11) 30... f5 {[%emt 0:11:44]} (30... Rd7 $16 {was worth a try.} 31. Ra8 (31. Bxf7 Rd4 $11) 31... Bd8 32. Bxf7 Rd4) 31. Ra7 $18 {[%emt 0:03:59]} fxe4 {[%emt 0:02:24]} 32. Bxe4 $40 {[%emt 0:00:11][%mdl 128] White goes for the king.} b5 {[%emt 0:00:28] Black is weak on the light squares} 33. Qc2 {[%emt 0:01:55]} Rd4 {[%emt 0:00:29]} 34. Bf3 {[%emt 0:02:56]} h5 $2 {[%emt 0:00:51]} (34... Rc4 {is a better defense.} 35. Qd3 Rc7) 35. Qc3 {[%emt 0:05:08][%cal Oa7e7] [#] aiming for Rxe7+!} Kf7 {[%emt 0:00:24]} 36. Rd7 {[%emt 0:01:07]} Re4 {[%emt 0:00:15]} 37. Qb3+ {[%emt 0:01:54]} Rc4 {[%emt 0:00:07]} 38. Rd5 {[%emt 0:00:47]} (38. Bd5+ $142 Ke8 39. Bxc4 (39. Rxe7+ Kxe7 40. Bxc4 Qe4+ 41. Kf1 Qh1+ 42. Ke2 bxc4 $18) 39... Kxd7 40. Qd3+ Kc6 41. Qxg6+ Kc7 42. Bf1) 38... Qb8 $2 {[%emt 0:01:01]} (38... Qc3 39. Qxc3 Rxc3) 39. Be2 {[%emt 0:00:28][%cal Od5b5] And now Rxb5! would win.} Rxb4 {[%emt 0:00:17]} 40. Rf5+ {[%emt 0:00:00]} (40. Rxh5+ $2 Rxb3 41. Rh7+ Kf6 $19) 40... Kg7 {[%emt 0:00:00]} 41. Qf7+ {[%emt 0:00:30]} (41. Rxb5 $2 {loses.} Rxb3 42. Rxb8 Rxb8 $19) 41... Kh6 {[%emt 0:00:15]} 42. Qxe7 {[%emt 0:00:45]} (42. Rxh5+ $142 gxh5 43. Qe6+ (43. Qxe7 Rg4 $18) 43... Kg7 44. Qxe7+ Kg8 45. Qxb4) 42... Rb2 {[%emt 0:01:11]} 43. Qg5+ {[%emt 0:00:47]} Kg7 {[%emt 0:00:09]} 44. Qf6+ {[%emt 0:00:06] Weighted Error Value: White=0.14 (very precise) /Black=0.53.  Mistake:       	White=1     	Black=4      Inaccurate:     	---       	Black=4      OK:         	White=12    	Black=12     Best:        	White=3     	---} 1-0

[Event "14th Karen Asrian Memorial 2024"]
[Site "Yerevan"]
[Date "2024.04.24"]
[Round "1.2"]
[White "Andreasyan, Edgar"]
[Black "Andriasian, Zaven"]
[Result "0-1"]
[ECO "E93"]
[WhiteElo "2051"]
[BlackElo "2570"]
[Annotator "TA"]
[PlyCount "90"]
[EventDate "2024.04.24"]
[EventType "swiss"]
[EventCountry "ARM"]
[SourceTitle "playchess.com"]
[Source "ChessBase"]
[SourceQuality "1"]
[TimeControl "40/5400+30:1800+30"]

{[%evp 22,90,60,56,118,80,115,78,125,145,150,132,129,131,102,73,74,42,51,0,-9,-81,-85,-200,-197,-212,-117,-340,-192,-424,-423,-427,-400,-737,-652,-929,-903,-905,-666,-1041,-1093,-1073,-1073,-1054,-1070,-1060,-621,-667,-650,-1172,-662,-652,-626,-602,-645,-580,-323,-325,-238,-527,-502,-558,-524,-750,-740,-663,-675,-29988,-29989,-29996,-29997]} 1. d4 {[%emt 0:00:06]} Nf6 {[%emt 0:00:18]} 2. c4 {[%emt 0:00:12]} g6 {[%emt 0:00:22]} 3. Nc3 {[%emt 0:00:07]} Bg7 {[%emt 0:00:28]} 4. e4 {[%emt 0:00:16]} d6 {[%emt 0:00:09]} 5. Be2 {[%emt 0:00:08]} Nbd7 {[%emt 0:01:20]} 6. Bg5 {[%emt 0:02:21]} a6 {[%emt 0:00:26]} 7. Nf3 {[%emt 0:04:28]} e5 {[%emt 0:05:51]} 8. O-O {[%emt 0:03:19]} O-O {[%emt 0:01:36]} 9. d5 {[%emt 0:07:16]} h6 {[%emt 0:00:45]} 10. Bh4 {[%emt 0:01:01]} Qe8 {[%emt 0:00:49]} 11. Nd2 {[%emt 0:02:28]} Nh7 {[%emt 0:00:38]} 12. b4 {[%emt 0:03:22]} h5 {[%emt 0:00:27]} ({Better is} 12... Ng5 $14) 13. f3 {[%emt 0:07:10]} f5 {[%emt 0:00:10]} 14. Bf2 {[%emt 0:01:11]} f4 {[%emt 0:01:29]} (14... Ndf6 $142) 15. c5 {[%emt 0:05:19]} g5 {[%emt 0:00:11][%cal Bg6g5,Bg5g4,Bg4g3][%mdl 32]} 16. Nc4 {[%emt 0:04:02]} Qg6 {[%emt 0:01:04]} 17. Rc1 {[%emt 0:03:22]} Bh6 {[%emt 0:04:01]} 18. cxd6 {[%emt 0:11:06]} cxd6 {[%emt 0:01:05]} 19. Na4 {[%emt 0:01:10]} g4 $1 {[%emt 0:11:11]} 20. Kh1 {[%emt 0:10:20]} (20. Ncb6 $14 Nxb6 21. Nxb6) 20... g3 $11 {[%emt 0:04:30]} 21. Bg1 {[%emt 0:06:27] [#]} (21. Bb6 $1 $11 {remains equal.}) 21... h4 $1 $17 {[%emt 0:01:44][%cal Oh4h3] aiming for ...h3!} 22. Bd3 {[%emt 0:02:33] [#]} (22. Re1 $17 {might work better.}) 22... h3 $1 $19 {[%emt 0:02:55][%mdl 512]} 23. Rc2 {[%emt 0:08:49] [#]} Ng5 {[%emt 0:05:24]} (23... b5 $1 $19 24. Ncb6 Rb8 25. Nxc8 Rbxc8 (25... Rfxc8 $2 26. Nb2 $19)) 24. Re1 $2 {[%emt 0:03:47] This costs White the game.} (24. gxh3 $17 Nf6 (24... Nxh3 25. Bb6 $17) 25. Nxd6 Bxh3 (25... Nxh3 $2 {too greedy.} 26. Nb6 $18) 26. Nf5) 24... Rb8 {[%emt 0:05:43]} (24... b5 $142 25. Nxd6 Qxd6 (25... bxa4 $2 26. gxh3 Nxh3 27. Bc5 $19)) 25. Na5 $2 {[%emt 0:06:16]} (25. gxh3 Nxh3 (25... b5 26. Nxd6 bxa4 27. Nf5 $17) 26. Qe2) 25... Nf6 {[%emt 0:01:43]} 26. Bf1 {[%emt 0:00:50]} Qh5 {[%emt 0:03:07]} 27. Qd3 {[%emt 0:03:22]} (27. Nb6 $142) 27... Kh8 {[%emt 0:04:05] ...hxg2+ is the strong threat.} 28. Nb6 {[%emt 0:02:29]} hxg2+ {[%emt 0:05:24]} 29. Bxg2 {[%emt 0:00:01]} Bh3 {[%emt 0:00:12]} 30. Rf1 {[%emt 0:00:04] [#]} Nfxe4 $1 {[%emt 0:01:39][%cal Og3h2][%mdl 512]} 31. Bxh3 {[%emt 0:02:03]} Qxh3 {[%emt 0:00:08]} 32. Rg2 {[%emt 0:00:32]} gxh2 {[%emt 0:01:18] ( -> ...Ng3+)} 33. Bf2 {[%emt 0:00:29]} Ng3+ {[%emt 0:01:16]} 34. Bxg3 {[%emt 0:00:02]} fxg3 {[%emt 0:00:11]} 35. Qg6 {[%emt 0:00:34]} Nxf3 {[%emt 0:09:23]} 36. Qxg3 {[%emt 0:00:42]} Qxg3 {[%emt 0:00:14]} 37. Rxg3 {[%emt 0:00:01]} Nh4 {[%emt 0:00:11]} 38. Re1 {[%emt 0:01:11][%cal Ob6d7]} Rf4 {[%emt 0:00:25]} 39. Nac4 {[%emt 0:00:33]} Rbf8 {[%emt 0:00:26] ...e4 would now be deadly.} 40. Ne3 $2 {[%emt 0:00:00]} (40. Nxd6 Rf1+ (40... Rxb4 41. Nd7 $17) 41. Rxf1 Rxf1+ 42. Kxh2) 40... Rxb4 {[%emt 0:00:00]} 41. Nec4 {[%emt 0:03:26]} Rf4 {[%emt 0:12:04]} 42. Rc3 {[%emt 0:01:43]} Nf3 {[%emt 0:00:29]} 43. Rd1 {[%emt 0:04:29]} e4 {[%emt 0:00:20] Hoping for ...Rg4.} 44. Nc8 {[%emt 0:01:11] [#]} Rxc4 $1 {[%emt 0:00:58]} 45. Rxc4 {[%emt 0:00:03]} (45. Rxf3 exf3) 45... Rg4 {[%emt 0:00:07] Weighted Error Value: White=1.21/Black=0.88.  Loses game:     	White=1     	---        Mistake:       	White=6     	Black=3      Inaccurate:     	White=5     	Black=1      OK:         	White=3     	Black=6      Best:        	---       	Black=1      Strong:       	---       	Black=2      Brilliant:      	---       	Black=1} 0-1

[Event "14th Karen Asrian Memorial 2024"]
[Site "Yerevan"]
[Date "2024.04.24"]
[Round "1.3"]
[White "Pranesh M"]
[Black "Arakelyan, Manvel"]
[Result "1-0"]
[ECO "B33"]
[WhiteElo "2538"]
[BlackElo "2033"]
[Annotator "TA"]
[PlyCount "53"]
[EventDate "2024.04.24"]
[EventType "swiss"]
[EventCountry "ARM"]
[SourceTitle "playchess.com"]
[Source "ChessBase"]
[SourceQuality "1"]
[TimeControl "40/5400+30:1800+30"]

{[%evp 16,53,13,0,0,1,14,0,0,5,7,0,19,24,32,20,22,34,9,0,26,33,40,43,37,24,42,39,54,0,0,20,38,13,23,0,81,50,891,881]} 1. e4 {[%emt 0:00:02]} c5 {[%emt 0:00:10]} 2. Nf3 {[%emt 0:00:04][%cal Bg1f3,Bf3d4,Bd4b5][%mdl 32]} Nc6 {[%emt 0:00:13]} 3. d4 {[%emt 0:00:05]} cxd4 {[%emt 0:00:14]} 4. Nxd4 {[%emt 0:00:03]} Nf6 {[%emt 0:00:11]} 5. Nc3 {[%emt 0:00:04]} e5 {[%emt 0:00:13]} 6. Ndb5 {[%emt 0:00:05]} d6 {[%emt 0:00:08]} 7. Nd5 {[%emt 0:00:05]} Nxd5 {[%emt 0:00:18]} 8. exd5 {[%emt 0:00:02]} Nb8 {[%emt 0:00:14]} 9. a4 {[%emt 0:00:04][%cal Ba2a4,Ba4a5,Ba5a6][%mdl 32]} Be7 {[%emt 0:00:19]} 10. Bd2 {[%emt 0:00:17]} O-O {[%emt 0:01:55]} 11. a5 {[%emt 0:00:03]} f5 {[%emt 0:09:08] The position is equal.} 12. Be2 {[%emt 0:00:04]} Nd7 {[%emt 0:01:40]} 13. Bb4 {[%emt 0:00:06]} Nf6 {[%emt 0:02:08]} 14. O-O {[%emt 0:00:06]} f4 {[%emt 0:02:19]} 15. c4 {[%emt 0:00:29][%cal Oa5a6]} Bf5 {[%emt 0:15:39]} 16. a6 {[%emt 0:01:06]} b6 {[%emt 0:04:43]} 17. f3 {[%emt 0:00:02]} Ne8 {[%emt 0:04:22]} 18. Bd3 {[%emt 0:00:33]} Nc7 {[%emt 0:03:31]} 19. Bxf5 {[%emt 0:01:31]} Rxf5 {[%emt 0:00:15]} 20. Qd3 {[%emt 0:00:16]} Rf6 {[%emt 0:01:52]} 21. Rfc1 {[%emt 0:01:33]} Qc8 {[%emt 0:09:48]} 22. Qa3 {[%emt 0:03:25][%cal Rb4d6]} Qd7 {[%emt 0:01:03]} 23. Nc3 {[%emt 0:07:07]} Rg6 {[%emt 0:01:31] [#] Strongly threatening ...Qh3.} 24. Kf1 {[%emt 0:01:46]} Rh6 {[%emt 0:06:53]} 25. h3 {[%emt 0:02:37]} b5 {[%emt 0:02:39]} (25... Ne8 $11 {remains equal.}) 26. cxb5 $16 {[%emt 0:07:19] aiming for Qa4.} Nxd5 $2 {[%emt 0:00:16][%mdl 8192]} 27. Qb3 {[%emt 0:00:41] Weighted Error Value: White=0.09 (flawless) /Black=0.18 (very precise) .  Loses game:     	---       	Black=1      Mistake:       	---       	Black=1      Inaccurate:     	White=1     	Black=1      OK:         	White=7     	Black=3} ({Not} 27. Nxd5 Qxb5+ 28. Kg1 Qxd5 $11) 1-0

[Event "14th Karen Asrian Memorial 2024"]
[Site "Yerevan"]
[Date "2024.04.24"]
[Round "1.4"]
[White "Kobak, Polina"]
[Black "Ohanyan, Emin"]
[Result "0-1"]
[ECO "E04"]
[WhiteElo "2027"]
[BlackElo "2488"]
[Annotator "TA"]
[PlyCount "126"]
[EventDate "2024.04.24"]
[EventType "swiss"]
[EventCountry "ARM"]
[SourceTitle "playchess.com"]
[Source "ChessBase"]
[SourceQuality "1"]
[TimeControl "40/5400+30:1800+30"]

{[%evp 33,126,-17,10,9,12,-19,-16,-16,0,0,0,0,0,0,0,0,0,0,0,0,0,0,0,0,0,0,0,0,0,0,0,0,0,0,0,0,0,0,0,0,0,0,0,-6,0,0,0,0,0,0,0,0,0,0,0,0,0,0,0,0,316,324,304,288,330,0,0,0,0,0,0,0,0,0,0,0,0,0,0,0,0,0,0,-1952,-1719,-29976,-29977,-29983,-29984,-29984,-29984,-29983,-29984,-29982,-29983]} 1. d4 {[%emt 0:00:02]} d5 {[%emt 0:12:01]} 2. c4 {[%emt 0:00:11]} e6 {[%emt 0:00:05]} 3. Nf3 {[%emt 0:00:07]} Nf6 {[%emt 0:00:03]} 4. g3 {[%emt 0:00:10]} dxc4 {[%emt 0:00:09]} 5. Bg2 {[%emt 0:00:08]} c6 {[%emt 0:00:04]} 6. a4 {[%emt 0:02:29] E04: Open Catalan: 5 Nf3.} Bb4+ {[%emt 0:01:01]} 7. Bd2 {[%emt 0:00:56]} a5 {[%emt 0:00:19]} 8. Qc2 {[%emt 0:05:07]} O-O {[%emt 0:00:54]} 9. Qxc4 {[%emt 0:01:51]} Be7 {[%emt 0:00:05]} 10. O-O {[%emt 0:00:52]} b6 $146 {[%emt 0:00:09]} ({Predecessor:} 10... Na6 11. Rd1 Nb4 12. Ne5 Nfd5 13. e4 Nb6 14. Qc3 Bd7 15. b3 Rc8 16. Be3 Be8 {1-0 Oparin,G (2683)-Bharath,S (2495) Titled Tuesday intern op 27th Sep Early blitz 2022 (10)}) 11. Qc2 {[%emt 0:05:16]} Ba6 {[%emt 0:02:00]} 12. Nc3 {[%emt 0:01:53]} Nbd7 {[%emt 0:00:50]} 13. Rfd1 {[%emt 0:08:16]} Nd5 {[%emt 0:07:02]} 14. Nxd5 {[%emt 0:04:24]} cxd5 {[%emt 0:00:55]} 15. Bc3 {[%emt 0:11:18]} Rc8 {[%emt 0:03:47]} 16. Qd2 {[%emt 0:15:19]} Bc4 {[%emt 0:10:43]} 17. Qe1 {[%emt 0:05:32]} Bb3 {[%emt 0:04:00]} 18. Rdc1 {[%emt 0:00:46]} Bc4 {[%emt 0:00:22]} 19. Nd2 {[%emt 0:02:23]} Ba6 {[%emt 0:00:03]} 20. e4 {[%emt 0:03:18]} Nf6 {[%emt 0:00:53]} 21. e5 {[%emt 0:03:38]} Nd7 {[%emt 0:01:46]} 22. Nf1 {[%emt 0:03:10]} Nb8 {[%emt 0:00:38]} 23. Ne3 {[%emt 0:03:12]} Nc6 {[%emt 0:00:02]} 24. Bf1 {[%emt 0:03:09]} Bxf1 {[%emt 0:00:06]} 25. Qxf1 {[%emt 0:00:05]} Qd7 {[%emt 0:00:29]} 26. Nc2 {[%emt 0:01:29]} Qb7 {[%emt 0:04:49]} 27. Qd3 {[%emt 0:02:56]} Rc7 {[%emt 0:00:36]} 28. Na3 {[%emt 0:04:06]} Na7 {[%emt 0:16:07]} 29. Bd2 {[%emt 0:01:40]} Rfc8 {[%emt 0:01:32]} 30. Nb5 {[%emt 0:02:41]} Qa6 {[%emt 0:07:14]} 31. Rxc7 {[%emt 0:01:18]} Rxc7 {[%emt 0:00:06]} 32. Rc1 {[%emt 0:00:31]} Nxb5 {[%emt 0:05:58]} 33. Qxb5 {[%emt 0:01:30]} Qxb5 {[%emt 0:00:03]} 34. axb5 {[%emt 0:00:05]} Rxc1+ {[%emt 0:00:02]} 35. Bxc1 {[%emt 0:00:05]} a4 {[%emt 0:00:02]} 36. Kf1 {[%emt 0:01:26]} f6 {[%emt 0:02:05]} 37. f4 {[%emt 0:00:59]} g5 {[%emt 0:04:54]} 38. Ke2 {[%emt 0:01:57]} fxe5 {[%emt 0:11:10]} 39. fxe5 {[%emt 0:00:32]} g4 {[%emt 0:00:03]} 40. Bd2 {[%emt 0:00:00]} Kf7 {[%emt 0:00:00]} 41. Kd3 {[%emt 0:11:21]} Kg6 {[%emt 0:00:35]} 42. Be3 {[%emt 0:02:31]} h5 {[%emt 0:00:43]} 43. Bf2 {[%emt 0:02:42]} h4 {[%emt 0:04:43]} (43... Bb4 $5 44. Be3 $8 Be7 $11) 44. Be1 {[%emt 0:06:51]} h3 {[%emt 0:00:40]} 45. Bc3 {[%emt 0:04:45]} Kf5 {[%emt 0:00:08]} 46. Bd2 {[%emt 0:00:05]} Bf8 $2 {[%emt 0:00:02][%mdl 8192] [#]} (46... Bd8 $11 {and Black is okay.}) 47. Ba5 $1 $18 {[%emt 0:04:53]} Bh6 {[%emt 0:04:14]} (47... bxa5 $2 48. b6 Kg6 49. b7 $18) 48. Bxb6 {[%emt 0:01:15]} Bf4 {[%emt 0:00:02]} 49. Ba5 $2 {[%emt 0:02:03]} (49. gxf4 $2 g3 50. hxg3 h2 $19) (49. Bc5 $18 {[%cal Ob5b6] Hoping for b6!} Bxg3 50. b6 (50. hxg3 $2 h2 $19) 50... Bxh2 51. b7) 49... Bxg3 $1 $11 {[%emt 0:00:07]} 50. b6 {[%emt 0:00:09]} (50. hxg3 $2 h2 51. Bc3 h1=Q $19 (51... h1=R 52. b6 $11)) 50... Bxe5 $1 {[%emt 0:02:57]} (50... Bxh2 $2 51. b7 g3 52. b8=Q $18 (52. b8=B $2 g2 $19)) 51. dxe5 {[%emt 0:00:15]} g3 $1 {[%emt 0:00:02]} 52. b7 {[%emt 0:00:22]} gxh2 {[%emt 0:00:18]} 53. b8=Q {[%emt 0:00:05]} (53. b8=R $2 {is the wrong capture.} h1=Q (53... h1=B $2 54. Rh8 $18) 54. Rf8+ Kg6 $19 (54... Kxe5 55. Bc7#)) 53... h1=Q {[%emt 0:00:04]} 54. Qf8+ {[%emt 0:00:26]} Kg4 {[%emt 0:00:17]} 55. Qg7+ {[%emt 0:00:45]} Kf3 {[%emt 0:01:10]} 56. Qf6+ {[%emt 0:00:51]} Kg3 {[%emt 0:00:09]} 57. Qg5+ {[%emt 0:01:00]} (57. Qxe6 Qe4+ 58. Kd2 h2 59. Qg8+ Kh3 (59... Kf3 $2 60. Qh8 $19) 60. Qe6+ Kg2 61. Qg8+ Kf3 $19) 57... Kf3 {[%emt 0:00:05]} 58. Qe3+ $2 {[%emt 0:01:53][%mdl 8192]} (58. Qh5+ $11 Kg3 59. Qg5+ Kf3 60. Qf6+ Kg3 61. Qg5+ (61. Qxe6 $2 {loses.} Qf3+ 62. Kd4 h2 $19)) 58... Kg4 $19 {[%emt 0:00:16]} 59. Kd2 {[%emt 0:02:05]} Qg2+ {[%emt 0:00:39]} 60. Kc1 {[%emt 0:00:33]} h2 {[%emt 0:00:27]} 61. Qd4+ {[%emt 0:00:16]} Qe4 {[%emt 0:00:20]} 62. Qd1+ {[%emt 0:00:12]} Qf3 {[%emt 0:00:03]} 63. Qxa4+ {[%emt 0:00:42]} Qf4+ {[%emt 0:00:04]} 0-1

[Event "14th Karen Asrian Memorial 2024"]
[Site "Yerevan"]
[Date "2024.04.24"]
[Round "1.5"]
[White "Davtyan, Artur"]
[Black "Gabadadze, Gabriel"]
[Result "1-0"]
[ECO "E17"]
[WhiteElo "2474"]
[BlackElo "2024"]
[Annotator "TA"]
[PlyCount "87"]
[EventDate "2024.04.24"]
[EventType "swiss"]
[EventCountry "ARM"]
[SourceTitle "playchess.com"]
[Source "ChessBase"]
[SourceQuality "1"]
[TimeControl "40/5400+30:1800+30"]

{[%evp 12,87,10,14,22,14,28,26,52,50,53,47,46,48,84,58,77,60,80,80,75,77,90,75,86,85,127,102,125,122,119,121,118,116,171,171,172,172,180,178,180,172,173,170,140,178,220,221,297,249,433,431,444,423,567,541,1427,1425,1297,1244,880,814,1598,1646,1520,1277,3381,5497,5506,5497,5418,5435,5385,3008,3776,2962,2069,1312]} 1. d4 {[%emt 0:01:47]} Nf6 {[%emt 0:00:09]} 2. c4 {[%emt 0:00:04]} e6 {[%emt 0:00:08]} 3. Nf3 {[%emt 0:01:54]} b6 {[%emt 0:00:13]} 4. g3 {[%emt 0:00:17]} Bb7 {[%emt 0:00:14]} 5. Bg2 {[%emt 0:00:07]} Be7 {[%emt 0:00:08]} 6. O-O {[%emt 0:00:08]} O-O {[%emt 0:00:05]} 7. Re1 {[%emt 0:00:12]} h6 {[%emt 0:00:48]} 8. Nc3 {[%emt 0:00:43]} Bb4 {[%emt 0:00:43]} 9. Qc2 {[%emt 0:00:45]} Bxc3 {[%emt 0:02:08] White has an edge.} 10. Qxc3 {[%emt 0:00:32]} d6 {[%emt 0:01:31]} 11. b3 {[%emt 0:13:37]} Nbd7 {[%emt 0:01:59]} 12. Bb2 {[%emt 0:00:18]} Qe7 {[%emt 0:03:16]} 13. Rad1 {[%emt 0:03:19][%cal Od4d5]} Be4 {[%emt 0:05:13]} 14. Bf1 {[%emt 0:00:41]} Rfe8 {[%emt 0:02:14]} 15. Nd2 {[%emt 0:00:48][%cal Bf3d2,Bd2f1,Bf1e3,Be3d5][%mdl 32]} Bb7 {[%emt 0:00:48]} 16. e4 {[%emt 0:00:46]} e5 {[%emt 0:00:49]} 17. Qc2 {[%emt 0:03:42]} a5 {[%emt 0:06:01]} 18. Bg2 {[%emt 0:06:21]} Rad8 {[%emt 0:06:25]} 19. Nf1 {[%emt 0:01:23]} c5 {[%emt 0:08:50]} 20. dxe5 {[%emt 0:04:34]} dxe5 {[%emt 0:01:17]} 21. Ne3 {[%emt 0:00:05] White is more active.} Nf8 {[%emt 0:02:21]} 22. Nd5 {[%emt 0:02:14]} Bxd5 {[%emt 0:02:48]} (22... Qd6 $16 {was worth a try.} 23. h4 N8d7) 23. exd5 $18 {[%emt 0:01:23]} Qd6 {[%emt 0:00:55]} 24. Qf5 {[%emt 0:11:57][%cal Rb2e5]} N8d7 {[%emt 0:06:49]} 25. Re2 {[%emt 0:01:37]} Re7 {[%emt 0:01:51]} 26. Rde1 {[%emt 0:00:05]} Rde8 {[%emt 0:00:30]} 27. h4 {[%emt 0:01:46]} g6 {[%emt 0:05:38]} 28. Qf3 {[%emt 0:03:49]} Kh7 {[%emt 0:02:34]} 29. Bh3 {[%emt 0:01:54]} Kg7 {[%emt 0:04:29]} 30. a4 {[%emt 0:01:17]} Kh7 $2 {[%emt 0:01:26]} (30... Nf8 31. Qc3 N6d7) 31. Qc3 {[%emt 0:00:42] White is clearly winning.} Nh5 {[%emt 0:11:53]} 32. Bxd7 {[%emt 0:02:38]} Qxd7 {[%emt 0:01:11]} 33. Rxe5 {[%emt 0:35:35]} f6 {[%emt 0:04:35]} 34. Rxe7+ {[%emt 0:00:00]} Rxe7 {[%emt 0:00:04]} 35. Rxe7+ {[%emt 0:00:00]} Qxe7 {[%emt 0:00:10][%mdl 4096] Endgame. KQB-KQN} 36. Qf3 {[%emt 0:00:00] [#] Threatens to win with g4.} Qd6 {[%emt 0:01:43]} 37. g4 {[%emt 0:00:00]} Nf4 {[%emt 0:00:38]} 38. Bc1 {[%emt 0:00:00]} g5 {[%emt 0:00:22][%cal Bg6g5,Bg5f4][%mdl 32]} 39. Bxf4 {[%emt 0:00:00]} gxf4 {[%emt 0:00:13]} 40. Qe4+ {[%emt 0:00:00]} Kg7 {[%emt 0:00:00]} 41. h5 {[%emt 0:00:00] [#] White wants to mate with Qg6+.} Kf8 {[%emt 0:03:07]} 42. Kg2 {[%emt 0:00:00] Strongly threatening Kf3.} f3+ {[%emt 0:00:57]} 43. Qxf3 {[%emt 0:00:00]} Qe5 {[%emt 0:00:28]} 44. Qe3 {[%emt 0:00:00] Weighted Error Value: White=0.04 (flawless) /Black=0.34.  Mistake:       	---       	Black=2      Inaccurate:     	White=1     	Black=6      OK:         	White=15    	Black=5      Best:        	White=2     	Black=1} 1-0